[Event "Titled Tuesday Blitz February 28 Early 2023"]
[White "Lorenzo De La Riva, Lazaro"]
[Black "Rodriguez Fontecha, Marcos"]
[WhiteFideId "2268809"]
[BlackFideId "2256576"]
[WhiteElo "2294"]
[BlackElo "2263"]
[Result "0-1"]
[Round "03"]
[TimeControl "180+2"]
[Date "2023.02.28"]
[WhiteClock "0:00:01"]
[BlackClock "0:00:33"]

1. e4 {[%clk 0:03:00]}  e6 {[%clk 0:02:53]} 2. d4 {[%clk 0:03:00]}  c5 {[%clk 0:02:49]} 3. Nf3 {[%clk 0:02:55]}  a6 {[%clk 0:02:48]} 4. c4 {[%clk 0:02:48]}  b6 {[%clk 0:02:47]} 5. Nc3 {[%clk 0:02:45]}  Bb7 {[%clk 0:02:47]} 6. d5 {[%clk 0:02:43]}  exd5 {[%clk 0:02:46]} 7. exd5 {[%clk 0:02:44]}  d6 {[%clk 0:02:45]} 8. Bd3 {[%clk 0:02:42]}  Nf6 {[%clk 0:02:46]} 9. O-O {[%clk 0:02:42]}  Be7 {[%clk 0:02:47]} 10. Re1 {[%clk 0:02:41]}  O-O {[%clk 0:02:47]} 11. a4 {[%clk 0:02:41]}  Re8 {[%clk 0:02:47]} 12. h3 {[%clk 0:02:40]}  Nbd7 {[%clk 0:02:47]} 13. Bf4 {[%clk 0:02:38]}  Nf8 {[%clk 0:02:47]} 14. Qd2 {[%clk 0:02:35]}  Ng6 {[%clk 0:02:46]} 15. Bh2 {[%clk 0:02:35]}  Bf8 {[%clk 0:02:43]} 16. a5 {[%clk 0:02:27]}  Rxe1+ {[%clk 0:02:33]} 17. Qxe1 {[%clk 0:02:26]}  Qc7 {[%clk 0:02:27]} 18. axb6 {[%clk 0:02:08]}  Qxb6 {[%clk 0:02:28]} 19. Qd2 {[%clk 0:02:09]}  Re8 {[%clk 0:02:27]} 20. Na4 {[%clk 0:02:03]}  Qd8 {[%clk 0:02:12]} 21. Qc2 {[%clk 0:02:01]}  Qa5 {[%clk 0:02:06]} 22. Ra3 {[%clk 0:01:52]}  Qb4 {[%clk 0:01:41]} 23. Nc3 {[%clk 0:01:49]}  Bc8 {[%clk 0:01:33]} 24. Bg3 {[%clk 0:01:25]}  Nh5 {[%clk 0:01:32]} 25. Bh2 {[%clk 0:01:14]}  Nh4 {[%clk 0:00:59]} 26. Nxh4 {[%clk 0:01:07]}  Re1+ {[%clk 0:00:58]} 27. Bf1 {[%clk 0:01:06]}  Qxc4 {[%clk 0:00:59]} 28. Qe2 {[%clk 0:00:18]}  Rxe2 {[%clk 0:00:56]} 29. Bxe2 {[%clk 0:00:16]}  Qxh4 {[%clk 0:00:55]} 30. Ra4 {[%clk 0:00:17]}  Qg5 {[%clk 0:00:52]} 31. g4 {[%clk 0:00:10]}  Qc1+ {[%clk 0:00:51]} 32. Kg2 {[%clk 0:00:11]}  Qxb2 {[%clk 0:00:50]} 33. Rc4 {[%clk 0:00:07]}  Nf6 {[%clk 0:00:44]} 34. Bf3 {[%clk 0:00:06]}  Qb3 {[%clk 0:00:39]} 35. Be2 {[%clk 0:00:05]}  a5 {[%clk 0:00:39]} 36. g5 {[%clk 0:00:02]}  Ba6 {[%clk 0:00:39]} 37. Rf4 {[%clk 0:00:02]}  Bxe2 {[%clk 0:00:34]} 38. Nxe2 {[%clk 0:00:02]}  Qxd5+ {[%clk 0:00:33]} 39. Kg1 {[%clk 0:00:01]}  Qd1+ {[%clk 0:00:33]} 0-1


[Site "https://www.chess.com"]

[Event "Titled Tuesday Blitz February 28 Early 2023"]
[White "Antonio, Jorge Carlos"]
[Black "Chernomordik, Pavel"]
[WhiteFideId "113190"]
[BlackFideId "2804530"]
[WhiteElo "2247"]
[BlackElo "2193"]
[Result "0-1"]
[Round "03"]
[TimeControl "180+2"]
[Date "2023.02.28"]
[WhiteClock "0:00:12"]
[BlackClock "0:00:09"]

1. d4 {[%clk 0:03:00]}  g6 {[%clk 0:02:59]} 2. Nf3 {[%clk 0:03:01]}  Bg7 {[%clk 0:02:59]} 3. c4 {[%clk 0:03:01]}  d6 {[%clk 0:02:59]} 4. Nc3 {[%clk 0:02:59]}  Nc6 {[%clk 0:02:59]} 5. e4 {[%clk 0:02:55]}  Bg4 {[%clk 0:02:57]} 6. Be3 {[%clk 0:02:41]}  Bxf3 {[%clk 0:02:57]} 7. gxf3 {[%clk 0:02:38]}  e5 {[%clk 0:02:55]} 8. d5 {[%clk 0:02:36]}  Nd4 {[%clk 0:02:54]} 9. f4 {[%clk 0:02:32]}  c5 {[%clk 0:02:51]} 10. fxe5 {[%clk 0:02:29]}  Bxe5 {[%clk 0:02:44]} 11. f4 {[%clk 0:02:23]}  Qh4+ {[%clk 0:02:33]} 12. Bf2 {[%clk 0:02:21]}  Qxf4 {[%clk 0:02:31]} 13. Be2 {[%clk 0:02:17]}  Nf6 {[%clk 0:02:19]} 14. Bg3 {[%clk 0:02:14]}  Qe3 {[%clk 0:02:13]} 15. Qd3 {[%clk 0:02:08]}  Bxg3+ {[%clk 0:02:00]} 16. hxg3 {[%clk 0:02:06]}  Nf3+ {[%clk 0:01:59]} 17. Kf1 {[%clk 0:02:01]}  Qxd3 {[%clk 0:01:53]} 18. Bxd3 {[%clk 0:02:01]}  Ne5 {[%clk 0:01:53]} 19. Ke2 {[%clk 0:01:57]}  Ke7 {[%clk 0:01:52]} 20. Raf1 {[%clk 0:01:49]}  a6 {[%clk 0:01:49]} 21. Kd2 {[%clk 0:01:45]}  h5 {[%clk 0:01:44]} 22. a3 {[%clk 0:01:39]}  Rac8 {[%clk 0:01:40]} 23. Rf4 {[%clk 0:01:38]}  Ne8 {[%clk 0:01:26]} 24. Rhf1 {[%clk 0:01:34]}  g5 {[%clk 0:01:26]} 25. Rf5 {[%clk 0:01:31]}  f6 {[%clk 0:01:26]} 26. Nd1 {[%clk 0:01:26]}  Rh6 {[%clk 0:01:21]} 27. Ne3 {[%clk 0:01:22]}  Ng7 {[%clk 0:01:20]} 28. b4 {[%clk 0:01:17]}  Rg6 {[%clk 0:01:11]} 29. R5f2 {[%clk 0:01:13]}  b6 {[%clk 0:00:54]} 30. Rb1 {[%clk 0:01:09]}  Rc7 {[%clk 0:00:44]} 31. Be2 {[%clk 0:01:05]}  Rh6 {[%clk 0:00:36]} 32. Rh1 {[%clk 0:00:57]}  a5 {[%clk 0:00:30]} 33. b5 {[%clk 0:00:53]}  Rc8 {[%clk 0:00:29]} 34. a4 {[%clk 0:00:49]}  Rch8 {[%clk 0:00:28]} 35. Rfh2 {[%clk 0:00:45]}  Kf7 {[%clk 0:00:24]} 36. g4 {[%clk 0:00:42]}  h4 {[%clk 0:00:19]} 37. Rf1 {[%clk 0:00:37]}  h3 {[%clk 0:00:17]} 38. Nd1 {[%clk 0:00:33]}  Ne8 {[%clk 0:00:16]} 39. Nf2 {[%clk 0:00:31]}  Rh4 {[%clk 0:00:15]} 40. Rfh1 {[%clk 0:00:24]}  Ng7 {[%clk 0:00:13]} 41. Rxh3 {[%clk 0:00:23]}  Rxh3 {[%clk 0:00:12]} 42. Rxh3 {[%clk 0:00:24]}  Rxh3 {[%clk 0:00:11]} 43. Nxh3 {[%clk 0:00:23]}  Ng6 {[%clk 0:00:12]} 44. Ke3 {[%clk 0:00:22]}  Ne5 {[%clk 0:00:11]} 45. Nf2 {[%clk 0:00:20]}  Kg6 {[%clk 0:00:11]} 46. Nh3 {[%clk 0:00:19]}  Ne8 {[%clk 0:00:10]} 47. Nf2 {[%clk 0:00:20]}  Nc7 {[%clk 0:00:10]} 48. Nd3 {[%clk 0:00:17]}  Nxc4+ {[%clk 0:00:09]} 49. Kf3 {[%clk 0:00:12]}  Ne8 {[%clk 0:00:09]} 50. Nxc5 {[%clk 0:00:11]}  Ne5+ {[%clk 0:00:08]} 51. Kg3 {[%clk 0:00:09]}  dxc5 {[%clk 0:00:09]} 52. Bd1 {[%clk 0:00:07]}  Nd6 {[%clk 0:00:10]} 53. Be2 {[%clk 0:00:08]}  Nxe4+ {[%clk 0:00:09]} 54. Kg2 {[%clk 0:00:06]}  c4 {[%clk 0:00:09]} 55. Bf3 {[%clk 0:00:04]}  Nd6 {[%clk 0:00:09]} 56. Bd1 {[%clk 0:00:03]}  c3 {[%clk 0:00:09]} 57. Kf2 {[%clk 0:00:04]}  Nec4 {[%clk 0:00:07]} 58. Ke2 {[%clk 0:00:03]}  Na3 {[%clk 0:00:07]} 59. Kd3 {[%clk 0:00:02]}  c2 {[%clk 0:00:07]} 60. Bxc2 {[%clk 0:00:03]}  Nxc2 {[%clk 0:00:07]} 61. Kxc2 {[%clk 0:00:04]}  f5 {[%clk 0:00:08]} 62. Kd3 {[%clk 0:00:05]}  fxg4 {[%clk 0:00:07]} 63. Kd4 {[%clk 0:00:05]}  Kf5 {[%clk 0:00:07]} 64. Ke3 {[%clk 0:00:04]}  Ke5 {[%clk 0:00:07]} 65. Kf2 {[%clk 0:00:03]}  Kxd5 {[%clk 0:00:07]} 66. Kg3 {[%clk 0:00:04]}  Kc4 {[%clk 0:00:07]} 67. Kxg4 {[%clk 0:00:05]}  Kb4 {[%clk 0:00:07]} 68. Kxg5 {[%clk 0:00:06]}  Kxa4 {[%clk 0:00:08]} 69. Kf4 {[%clk 0:00:06]}  Kxb5 {[%clk 0:00:08]} 70. Ke3 {[%clk 0:00:07]}  a4 {[%clk 0:00:08]} 71. Kd2 {[%clk 0:00:08]}  Kb4 {[%clk 0:00:08]} 72. Kc2 {[%clk 0:00:09]}  a3 {[%clk 0:00:08]} 73. Kb1 {[%clk 0:00:10]}  Nb5 {[%clk 0:00:09]} 74. Ka2 {[%clk 0:00:10]}  Nd4 {[%clk 0:00:09]} 75. Ka1 {[%clk 0:00:11]}  Kb3 {[%clk 0:00:09]} 76. Kb1 {[%clk 0:00:11]}  a2+ {[%clk 0:00:09]} 77. Ka1 {[%clk 0:00:12]}  Nc2# {[%clk 0:00:09]} 0-1


[Site "https://www.chess.com"]

[Event "Titled Tuesday Blitz February 28 Early 2023"]
[White "Fiedorek, Michal"]
[Black "De Souza, Cristiano Gomes"]
[WhiteFideId "1199528"]
[BlackFideId "2151758"]
[WhiteElo "2135"]
[BlackElo "2068"]
[Result "1-0"]
[Round "03"]
[TimeControl "180+2"]
[Date "2023.02.28"]
[WhiteClock "0:00:15"]
[BlackClock "0:00:21"]

1. Nf3 {[%clk 0:02:58]}  Nf6 {[%clk 0:02:59]} 2. b3 {[%clk 0:02:58]}  g6 {[%clk 0:03:00]} 3. Bb2 {[%clk 0:02:59]}  Bg7 {[%clk 0:03:00]} 4. c4 {[%clk 0:02:59]}  O-O {[%clk 0:03:00]} 5. g3 {[%clk 0:02:59]}  d5 {[%clk 0:03:00]} 6. Bg2 {[%clk 0:02:58]}  dxc4 {[%clk 0:03:00]} 7. bxc4 {[%clk 0:02:58]}  Nbd7 {[%clk 0:03:00]} 8. O-O {[%clk 0:02:58]}  Nb6 {[%clk 0:03:00]} 9. d3 {[%clk 0:02:57]}  c5 {[%clk 0:02:58]} 10. Nbd2 {[%clk 0:02:57]}  Bd7 {[%clk 0:02:53]} 11. Nb3 {[%clk 0:02:57]}  Ba4 {[%clk 0:02:53]} 12. Qc1 {[%clk 0:02:55]}  Rc8 {[%clk 0:02:51]} 13. Ne5 {[%clk 0:02:55]}  Rc7 {[%clk 0:02:46]} 14. Qe3 {[%clk 0:02:47]}  Bxb3 {[%clk 0:02:39]} 15. axb3 {[%clk 0:02:47]}  a6 {[%clk 0:02:36]} 16. Rfd1 {[%clk 0:02:44]}  Nbd7 {[%clk 0:02:34]} 17. Nxd7 {[%clk 0:02:41]}  Qxd7 {[%clk 0:02:32]} 18. d4 {[%clk 0:02:41]}  cxd4 {[%clk 0:02:31]} 19. Bxd4 {[%clk 0:02:41]}  Qc8 {[%clk 0:02:28]} 20. Rd2 {[%clk 0:02:33]}  Rd7 {[%clk 0:02:27]} 21. Bh3 {[%clk 0:02:24]}  e6 {[%clk 0:02:26]} 22. Rad1 {[%clk 0:02:23]}  Rfd8 {[%clk 0:02:25]} 23. Bb2 {[%clk 0:01:31]}  Rxd2 {[%clk 0:02:24]} 24. Rxd2 {[%clk 0:01:31]}  Rxd2 {[%clk 0:02:23]} 25. Qxd2 {[%clk 0:01:31]}  Qd7 {[%clk 0:02:21]} 26. Qxd7 {[%clk 0:01:29]}  Nxd7 {[%clk 0:02:20]} 27. Ba3 {[%clk 0:01:29]}  Bf8 {[%clk 0:02:19]} 28. Bb2 {[%clk 0:01:26]}  b5 {[%clk 0:02:17]} 29. Bg2 {[%clk 0:01:24]}  bxc4 {[%clk 0:02:17]} 30. bxc4 {[%clk 0:01:25]}  Nb6 {[%clk 0:02:15]} 31. Bb7 {[%clk 0:01:17]}  Nxc4 {[%clk 0:02:14]} 32. Bc3 {[%clk 0:01:16]}  a5 {[%clk 0:02:06]} 33. Ba6 {[%clk 0:01:16]}  Nb6 {[%clk 0:01:53]} 34. Bxa5 {[%clk 0:01:16]}  Nd5 {[%clk 0:01:54]} 35. e4 {[%clk 0:01:15]}  Nb4 {[%clk 0:01:52]} 36. Bb5 {[%clk 0:01:11]}  Nc2 {[%clk 0:01:48]} 37. Kg2 {[%clk 0:01:09]}  Nd4 {[%clk 0:01:47]} 38. Bd3 {[%clk 0:01:08]}  Nc6 {[%clk 0:01:44]} 39. Bb6 {[%clk 0:01:04]}  Ne5 {[%clk 0:01:41]} 40. Be2 {[%clk 0:01:03]}  h5 {[%clk 0:01:40]} 41. f4 {[%clk 0:01:03]}  Nd7 {[%clk 0:01:39]} 42. Bd4 {[%clk 0:01:01]}  Bc5 {[%clk 0:01:37]} 43. Bc3 {[%clk 0:01:00]}  Kf8 {[%clk 0:01:37]} 44. Bb5 {[%clk 0:01:00]}  Ke7 {[%clk 0:01:36]} 45. Kf3 {[%clk 0:00:59]}  Nb6 {[%clk 0:01:34]} 46. Ke2 {[%clk 0:00:53]}  f6 {[%clk 0:01:31]} 47. h3 {[%clk 0:00:52]}  Bd6 {[%clk 0:01:22]} 48. Kd3 {[%clk 0:00:48]}  Nc8 {[%clk 0:01:15]} 49. e5 {[%clk 0:00:44]}  fxe5 {[%clk 0:01:14]} 50. fxe5 {[%clk 0:00:45]}  Bc7 {[%clk 0:01:14]} 51. Ke4 {[%clk 0:00:41]}  Nb6 {[%clk 0:01:09]} 52. Bb4+ {[%clk 0:00:39]}  Kf7 {[%clk 0:01:09]} 53. Ba5 {[%clk 0:00:39]}  Nd5 {[%clk 0:01:04]} 54. Bxc7 {[%clk 0:00:39]}  Nxc7 {[%clk 0:01:04]} 55. Bc4 {[%clk 0:00:35]}  Ke7 {[%clk 0:01:00]} 56. Kf4 {[%clk 0:00:34]}  Kf7 {[%clk 0:00:56]} 57. Kg5 {[%clk 0:00:34]}  Nd5 {[%clk 0:00:51]} 58. Bd3 {[%clk 0:00:33]}  Ne7 {[%clk 0:00:50]} 59. h4 {[%clk 0:00:18]}  Nf5 {[%clk 0:00:43]} 60. Bxf5 {[%clk 0:00:17]}  exf5 {[%clk 0:00:40]} 61. e6+ {[%clk 0:00:17]}  Kxe6 {[%clk 0:00:39]} 62. Kxg6 {[%clk 0:00:17]}  Ke5 {[%clk 0:00:39]} 63. Kxh5 {[%clk 0:00:16]}  Kf6 {[%clk 0:00:28]} 64. Kh6 {[%clk 0:00:15]}  Kf7 {[%clk 0:00:27]} 65. Kg5 {[%clk 0:00:15]}  Ke6 {[%clk 0:00:21]} 66. h5 {[%clk 0:00:15]} 1-0


[Site "https://www.chess.com"]

[Event "Titled Tuesday Blitz February 28 Early 2023"]
[White "Grigorov, Grigor"]
[Black "Kohler, Aran"]
[WhiteFideId "2907313"]
[BlackFideId "1002856"]
[WhiteElo "2510"]
[BlackElo "2257"]
[Result "1-0"]
[Round "03"]
[TimeControl "180+2"]
[Date "2023.02.28"]
[WhiteClock "0:00:39"]
[BlackClock "0:00:15"]

1. d4 {[%clk 0:03:00]}  d5 {[%clk 0:02:59]} 2. Nf3 {[%clk 0:02:58]}  Nf6 {[%clk 0:02:58]} 3. c3 {[%clk 0:02:57]}  c6 {[%clk 0:02:56]} 4. Bf4 {[%clk 0:02:55]}  Bf5 {[%clk 0:02:56]} 5. Qb3 {[%clk 0:02:55]}  Qb6 {[%clk 0:02:56]} 6. Nbd2 {[%clk 0:02:50]}  e6 {[%clk 0:02:50]} 7. Nh4 {[%clk 0:02:47]}  Bg6 {[%clk 0:02:42]} 8. Nxg6 {[%clk 0:02:45]}  hxg6 {[%clk 0:02:41]} 9. h3 {[%clk 0:02:41]}  Be7 {[%clk 0:02:38]} 10. e3 {[%clk 0:02:41]}  c5 {[%clk 0:02:30]} 11. Qxb6 {[%clk 0:02:30]}  axb6 {[%clk 0:02:31]} 12. Bd3 {[%clk 0:02:27]}  Nc6 {[%clk 0:02:25]} 13. a3 {[%clk 0:02:25]}  c4 {[%clk 0:02:22]} 14. Bc2 {[%clk 0:02:24]}  b5 {[%clk 0:02:22]} 15. Ke2 {[%clk 0:02:13]}  Nh5 {[%clk 0:02:17]} 16. Bh2 {[%clk 0:02:12]}  f5 {[%clk 0:02:17]} 17. g4 {[%clk 0:02:07]}  Nf6 {[%clk 0:02:15]} 18. Bf4 {[%clk 0:02:07]}  Ne4 {[%clk 0:02:10]} 19. Nxe4 {[%clk 0:02:03]}  fxe4 {[%clk 0:02:01]} 20. f3 {[%clk 0:01:54]}  g5 {[%clk 0:01:56]} 21. Bg3 {[%clk 0:01:54]}  exf3+ {[%clk 0:01:57]} 22. Kxf3 {[%clk 0:01:55]}  O-O+ {[%clk 0:01:55]} 23. Kg2 {[%clk 0:01:51]}  Rad8 {[%clk 0:01:42]} 24. e4 {[%clk 0:01:49]}  dxe4 {[%clk 0:01:39]} 25. Bxe4 {[%clk 0:01:48]}  Bd6 {[%clk 0:01:39]} 26. Rae1 {[%clk 0:01:41]}  Bxg3 {[%clk 0:01:35]} 27. Kxg3 {[%clk 0:01:42]}  Rf6 {[%clk 0:01:21]} 28. h4 {[%clk 0:01:37]}  gxh4+ {[%clk 0:01:17]} 29. Rxh4 {[%clk 0:01:38]}  Ne7 {[%clk 0:00:29]} 30. Bxb7 {[%clk 0:01:21]}  Nd5 {[%clk 0:00:29]} 31. Rh5 {[%clk 0:01:08]}  Nf4 {[%clk 0:00:24]} 32. Rxb5 {[%clk 0:01:03]}  Nd3 {[%clk 0:00:22]} 33. Re3 {[%clk 0:00:55]}  Rdf8 {[%clk 0:00:22]} 34. Rf3 {[%clk 0:00:53]}  Rxf3+ {[%clk 0:00:19]} 35. Bxf3 {[%clk 0:00:53]}  Kf7 {[%clk 0:00:15]} 36. g5 {[%clk 0:00:39]} 1-0


[Site "https://www.chess.com"]

[Event "Titled Tuesday Blitz February 28 Early 2023"]
[White "Javakhadze, Zurab"]
[Black "Qashashvili, Alexandre"]
[WhiteFideId "13603647"]
[BlackFideId "13600842"]
[WhiteElo "2381"]
[BlackElo "2405"]
[Result "1-0"]
[Round "03"]
[TimeControl "180+2"]
[Date "2023.02.28"]
[WhiteClock "0:01:20"]
[BlackClock "0:00:26"]

1. Nf3 {[%clk 0:02:51]}  c6 {[%clk 0:03:00]} 2. g3 {[%clk 0:02:51]}  d5 {[%clk 0:03:01]} 3. Bg2 {[%clk 0:02:51]}  Bf5 {[%clk 0:03:00]} 4. O-O {[%clk 0:02:48]}  Qc8 {[%clk 0:02:59]} 5. c4 {[%clk 0:02:37]}  Nf6 {[%clk 0:02:58]} 6. cxd5 {[%clk 0:02:36]}  Bh3 {[%clk 0:02:58]} 7. dxc6 {[%clk 0:02:33]}  Nxc6 {[%clk 0:02:57]} 8. Qb3 {[%clk 0:02:31]}  Bxg2 {[%clk 0:02:56]} 9. Kxg2 {[%clk 0:02:31]}  h5 {[%clk 0:02:52]} 10. h4 {[%clk 0:02:26]}  g6 {[%clk 0:02:50]} 11. Nc3 {[%clk 0:02:23]}  Bg7 {[%clk 0:02:50]} 12. d4 {[%clk 0:02:23]}  O-O {[%clk 0:02:50]} 13. Bg5 {[%clk 0:02:24]}  Qd7 {[%clk 0:02:46]} 14. Rfd1 {[%clk 0:02:21]}  e6 {[%clk 0:02:38]} 15. Rac1 {[%clk 0:02:17]}  Nd5 {[%clk 0:02:32]} 16. e4 {[%clk 0:02:13]}  Nb6 {[%clk 0:02:32]} 17. d5 {[%clk 0:02:10]}  exd5 {[%clk 0:02:32]} 18. exd5 {[%clk 0:02:10]}  Na5 {[%clk 0:02:26]} 19. Qb4 {[%clk 0:02:03]}  Nac4 {[%clk 0:02:25]} 20. Ne4 {[%clk 0:02:02]}  Ne5 {[%clk 0:02:22]} 21. Nxe5 {[%clk 0:01:50]}  Bxe5 {[%clk 0:02:21]} 22. d6 {[%clk 0:01:46]}  Rac8 {[%clk 0:01:50]} 23. Rxc8 {[%clk 0:01:37]}  Rxc8 {[%clk 0:01:48]} 24. Nf6+ {[%clk 0:01:35]}  Bxf6 {[%clk 0:01:47]} 25. Bxf6 {[%clk 0:01:36]}  Qc6+ {[%clk 0:01:45]} 26. Kg1 {[%clk 0:01:34]}  Nd5 {[%clk 0:01:46]} 27. Qd4 {[%clk 0:01:27]}  Nxf6 {[%clk 0:01:44]} 28. Qxf6 {[%clk 0:01:27]}  Qd7 {[%clk 0:01:31]} 29. Re1 {[%clk 0:01:26]}  Qb5 {[%clk 0:01:07]} 30. Re7 {[%clk 0:01:23]}  Rc1+ {[%clk 0:01:06]} 31. Kh2 {[%clk 0:01:22]}  Rh1+ {[%clk 0:00:25]} 32. Kxh1 {[%clk 0:01:20]}  Qf1+ {[%clk 0:00:26]} 33. Kh2 {[%clk 0:01:20]}  Qxf2+ {[%clk 0:00:26]} 34. Qxf2 {[%clk 0:01:20]} 1-0


[Site "https://www.chess.com"]

[Event "Titled Tuesday Blitz February 28 Early 2023"]
[White "Ipek, Egehan"]
[Black "Comas Fabrego, Lluis"]
[WhiteFideId "44523793"]
[BlackFideId "2200325"]
[WhiteElo "1948"]
[BlackElo "2523"]
[Result "0-1"]
[Round "03"]
[TimeControl "180+2"]
[Date "2023.02.28"]
[WhiteClock "0:00:06"]
[BlackClock "0:00:18"]

1. d4 {[%clk 0:03:00]}  Nf6 {[%clk 0:02:32]} 2. c4 {[%clk 0:02:58]}  c5 {[%clk 0:02:28]} 3. d5 {[%clk 0:02:58]}  b5 {[%clk 0:02:27]} 4. cxb5 {[%clk 0:02:57]}  a6 {[%clk 0:02:28]} 5. bxa6 {[%clk 0:02:55]}  g6 {[%clk 0:02:27]} 6. Nc3 {[%clk 0:02:55]}  Bg7 {[%clk 0:02:27]} 7. e4 {[%clk 0:02:55]}  O-O {[%clk 0:02:27]} 8. Nf3 {[%clk 0:02:55]}  Qa5 {[%clk 0:02:26]} 9. Be2 {[%clk 0:02:50]}  Bxa6 {[%clk 0:02:25]} 10. O-O {[%clk 0:02:48]}  d6 {[%clk 0:02:16]} 11. Bg5 {[%clk 0:02:27]}  Nbd7 {[%clk 0:02:12]} 12. Qd2 {[%clk 0:02:23]}  Rfb8 {[%clk 0:01:23]} 13. Rfb1 {[%clk 0:01:46]}  Nxe4 {[%clk 0:01:15]} 14. Nxe4 {[%clk 0:01:43]}  Qxd2 {[%clk 0:01:15]} 15. Nfxd2 {[%clk 0:01:22]}  Bxe2 {[%clk 0:01:14]} 16. Bxe7 {[%clk 0:01:22]}  Bxb2 {[%clk 0:01:14]} 17. Bxd6 {[%clk 0:01:23]}  Rb6 {[%clk 0:00:58]} 18. Bxc5 {[%clk 0:00:55]}  Nxc5 {[%clk 0:00:43]} 19. Nxc5 {[%clk 0:00:56]}  Rb5 {[%clk 0:00:43]} 20. a4 {[%clk 0:00:47]}  Rxc5 {[%clk 0:00:33]} 21. Rxb2 {[%clk 0:00:47]}  Rxa4 {[%clk 0:00:29]} 22. Re1 {[%clk 0:00:30]}  Rxd5 {[%clk 0:00:22]} 23. Ne4 {[%clk 0:00:08]}  Rxe4 {[%clk 0:00:20]} 24. f3 {[%clk 0:00:06]}  Bxf3 {[%clk 0:00:18]} 0-1


[Site "https://www.chess.com"]

[Event "Titled Tuesday Blitz February 28 Early 2023"]
[White "Williams, Simon K"]
[Black "Kornyukov, Alexey"]
[WhiteFideId "404454"]
[BlackFideId "4150457"]
[WhiteElo "2468"]
[BlackElo "2352"]
[Result "1-0"]
[Round "03"]
[TimeControl "180+2"]
[Date "2023.02.28"]
[WhiteClock "0:00:55"]
[BlackClock "0:01:11"]

1. e4 {[%clk 0:03:00]}  c5 {[%clk 0:02:57]} 2. a3 {[%clk 0:02:58]}  Nc6 {[%clk 0:02:57]} 3. b4 {[%clk 0:02:58]}  cxb4 {[%clk 0:02:57]} 4. axb4 {[%clk 0:02:58]}  Nxb4 {[%clk 0:02:56]} 5. d4 {[%clk 0:02:58]}  d5 {[%clk 0:02:54]} 6. c3 {[%clk 0:02:57]}  Nc6 {[%clk 0:02:54]} 7. exd5 {[%clk 0:02:58]}  Qxd5 {[%clk 0:02:53]} 8. Na3 {[%clk 0:02:58]}  e5 {[%clk 0:02:52]} 9. Nb5 {[%clk 0:02:58]}  Qd8 {[%clk 0:02:51]} 10. d5 {[%clk 0:02:58]}  Nb8 {[%clk 0:02:46]} 11. d6 {[%clk 0:02:57]}  Na6 {[%clk 0:02:43]} 12. Rxa6 {[%clk 0:02:55]}  bxa6 {[%clk 0:02:43]} 13. Nc7+ {[%clk 0:02:55]}  Kd7 {[%clk 0:02:40]} 14. Qa4+ {[%clk 0:02:16]}  Kxd6 {[%clk 0:02:27]} 15. Ne8+ {[%clk 0:02:05]}  Ke7 {[%clk 0:02:19]} 16. Ba3+ {[%clk 0:02:02]}  Ke6 {[%clk 0:02:17]} 17. Qg4+ {[%clk 0:01:25]}  f5 {[%clk 0:01:40]} 18. Bc4+ {[%clk 0:01:07]}  Kd7 {[%clk 0:01:34]} 19. Qxf5+ {[%clk 0:01:07]}  Kc6 {[%clk 0:01:21]} 20. Qe4+ {[%clk 0:01:07]}  Kd7 {[%clk 0:01:18]} 21. Qd5+ {[%clk 0:00:56]}  Kxe8 {[%clk 0:01:11]} 22. Qf7# {[%clk 0:00:55]} 1-0


[Site "https://www.chess.com"]

[Event "Titled Tuesday Blitz February 28 Early 2023"]
[White "Sovetbekova, Nurai"]
[Black "Kozlov, Gennady"]
[WhiteFideId "13801910"]
[BlackFideId "4191668"]
[WhiteElo "1857"]
[BlackElo "2356"]
[Result "0-1"]
[Round "03"]
[TimeControl "180+2"]
[Date "2023.02.28"]
[WhiteClock "0:00:18"]
[BlackClock "0:01:58"]

1. d4 {[%clk 0:03:00]}  e6 {[%clk 0:02:59]} 2. c4 {[%clk 0:03:00]}  b6 {[%clk 0:02:58]} 3. Nc3 {[%clk 0:02:57]}  Bb7 {[%clk 0:02:59]} 4. e4 {[%clk 0:02:56]}  Bb4 {[%clk 0:02:59]} 5. f3 {[%clk 0:02:54]}  Nh6 {[%clk 0:02:57]} 6. Bd3 {[%clk 0:02:51]}  f5 {[%clk 0:02:56]} 7. exf5 {[%clk 0:02:50]}  Nxf5 {[%clk 0:02:55]} 8. Bxf5 {[%clk 0:02:40]}  exf5 {[%clk 0:02:55]} 9. Qe2+ {[%clk 0:02:40]}  Kf7 {[%clk 0:02:54]} 10. Be3 {[%clk 0:02:35]}  Re8 {[%clk 0:02:52]} 11. f4 {[%clk 0:02:32]}  Rxe3 {[%clk 0:02:42]} 12. Qxe3 {[%clk 0:02:31]}  Bxg2 {[%clk 0:02:43]} 13. Nf3 {[%clk 0:02:16]}  Bxh1 {[%clk 0:02:43]} 14. O-O-O {[%clk 0:02:05]}  Bxf3 {[%clk 0:02:39]} 15. Qxf3 {[%clk 0:02:05]}  Nc6 {[%clk 0:02:38]} 16. Qh5+ {[%clk 0:01:37]}  Kg8 {[%clk 0:02:26]} 17. Qxf5 {[%clk 0:01:35]}  Bxc3 {[%clk 0:02:24]} 18. bxc3 {[%clk 0:01:35]}  Qe7 {[%clk 0:02:24]} 19. d5 {[%clk 0:01:33]}  Na5 {[%clk 0:02:22]} 20. d6 {[%clk 0:01:26]}  Qf7 {[%clk 0:02:17]} 21. Qe4 {[%clk 0:01:05]}  c6 {[%clk 0:02:09]} 22. Re1 {[%clk 0:00:36]}  Qxc4 {[%clk 0:02:08]} 23. Qe5 {[%clk 0:00:20]}  Qxa2 {[%clk 0:02:02]} 24. Kd1 {[%clk 0:00:20]}  Qd5+ {[%clk 0:02:00]} 25. Qxd5+ {[%clk 0:00:19]}  cxd5 {[%clk 0:02:00]} 26. Re7 {[%clk 0:00:20]}  Rd8 {[%clk 0:01:59]} 27. Kd2 {[%clk 0:00:20]}  Nc6 {[%clk 0:01:58]} 28. Re2 {[%clk 0:00:18]}  Kf7 {[%clk 0:01:58]} 29. Kd3 {[%clk 0:00:18]}  Re8 {[%clk 0:01:58]} 30. Rg2 {[%clk 0:00:18]}  Re6 {[%clk 0:01:58]} 0-1


[Site "https://www.chess.com"]

[Event "Titled Tuesday Blitz February 28 Early 2023"]
[White "Ezat, Mohamed"]
[Black "Alhadad, Mahmoud"]
[WhiteFideId "10600906"]
[BlackFideId "11501863"]
[WhiteElo "2388"]
[BlackElo "1955"]
[Result "1-0"]
[Round "03"]
[TimeControl "180+2"]
[Date "2023.02.28"]
[WhiteClock "0:00:29"]
[BlackClock "0:00:01"]

1. d4 {[%clk 0:02:24]}  d5 {[%clk 0:02:59]} 2. c4 {[%clk 0:02:22]}  Nc6 {[%clk 0:02:59]} 3. cxd5 {[%clk 0:02:20]}  Qxd5 {[%clk 0:03:00]} 4. e3 {[%clk 0:02:21]}  e5 {[%clk 0:03:00]} 5. Nc3 {[%clk 0:02:21]}  Bb4 {[%clk 0:03:00]} 6. Bd2 {[%clk 0:02:21]}  Bxc3 {[%clk 0:02:59]} 7. Bxc3 {[%clk 0:02:22]}  exd4 {[%clk 0:02:57]} 8. Ne2 {[%clk 0:02:20]}  Nf6 {[%clk 0:02:57]} 9. Nxd4 {[%clk 0:02:20]}  O-O {[%clk 0:02:57]} 10. Nb5 {[%clk 0:02:21]}  Qg5 {[%clk 0:02:55]} 11. h4 {[%clk 0:02:21]}  Qg6 {[%clk 0:02:49]} 12. Nxc7 {[%clk 0:02:20]}  Bg4 {[%clk 0:02:44]} 13. Qb3 {[%clk 0:02:00]}  Rad8 {[%clk 0:02:23]} 14. Bc4 {[%clk 0:01:42]}  Ne4 {[%clk 0:02:01]} 15. Nd5 {[%clk 0:01:35]}  Nxc3 {[%clk 0:01:24]} 16. Qxc3 {[%clk 0:01:34]}  Rfe8 {[%clk 0:01:03]} 17. h5 {[%clk 0:01:29]}  Bxh5 {[%clk 0:00:45]} 18. Nf4 {[%clk 0:01:28]}  Qg4 {[%clk 0:00:10]} 19. Nxh5 {[%clk 0:01:01]}  Ne5 {[%clk 0:00:06]} 20. Bf1 {[%clk 0:00:46]}  Rc8 {[%clk 0:00:02]} 21. Qb3 {[%clk 0:00:31]}  Qe4 {[%clk 0:00:01]} 22. Nf4 {[%clk 0:00:29]} 1-0


[Site "https://www.chess.com"]